Cogmind - Beta 10.2 @@@ ROGUE MODE // 2022.01.05 @ 15:26:06 Player: Bokkiewokkie Result: Self-destructed Performance ------------- Evolutions (1) 500 Regions Visited (2) 400 Robots Destroyed (16) 80 Value Destroyed (313) 313 Prototype IDs (6) 120 Alien Tech Used (0) 0 Bonus (0) 0 TOTAL SCORE: 1413 Bonus ------- None Cogmind --------- Core Integrity 378/400 Matter 11/300 Energy 250/250 System Corruption 0% Temperature Cool (0) Movement Rolling (80) Location -9/Materials Parts ------- > --- POWER (1) -------- Ion Engine > --- PROPULSION (2) --- Wheel Wheel > --- UTILITY (4) ------ Small Storage Unit Sensor Array Targeting Computer > --- WEAPON (2) ------- Grenade Launcher > --- INVENTORY (6) ---- Heat Sink Medium Matter Pod (0) Tractor Beam Grenade Launcher Grenade Launcher Grenade Launcher Peak State ------------ > --- POWER ------------ Ion Engine > --- PROPULSION ------- Wheel Wheel > --- UTILITY ---------- Small Storage Unit Sensor Array Targeting Computer > --- WEAPON ----------- Grenade Launcher Grenade Launcher > --- INVENTORY -------- Heat Sink Tractor Beam Grenade Launcher Grenade Launcher Grenade Launcher [Rating: 8] Favorites ----------- Power Ion Engine Engine Ion Engine Propulsion Wheel Wheel Wheel Utility Small Storage Unit Device Sensor Array Storage Small Storage Unit Processor Targeting Computer Weapon Grenade Launcher Energy Gun Small Laser Launcher Grenade Launcher Build | -11 -10 -9 ------- Run | Scr Mat Mat Slots Evolved 2 | . . 2 Power . | . . . Propulsion . | . . . Utility 2 | . . 2 Weapon . | . . . Parts Attached 11 | 6 4 1 Power 2 | 1 1 . Engine 2 | 1 1 . Core . | . . . Reactor . | . . . Propulsion 2 | 2 . . Treads . | . . . Leg . | . . . Wheel 2 | 2 . . Hover . | . . . Flight . | . . . Utility 3 | 1 1 1 Device 1 | . 1 . Storage 1 | 1 . . Processor 1 | . . 1 Hackware . | . . . Protection . | . . . Artifact . | . . . Weapon 4 | 2 2 . Energy Gun 2 | 2 . . Energy Cannon . | . . . Ballistic Gun . | . . . Ballistic Cannon . | . . . Launcher 2 | . 2 . Special Weapon . | . . . Impact Weapon . | . . . Slashing Weapon . | . . . Piercing Weapon . | . . . Special Melee Weapon . | . . . Unidentified Prototypes . | . . . Parts Lost 1 | . . 1 Power . | . . . Propulsion . | . . . Utility . | . . . Weapon 1 | . . 1 Highest Loss Streak 1 | . . 1 Average Slot Usage (%) 94 | . 99 85 Engine 12 | . 14 11 Wheel 25 | . 28 22 Device 12 | . 14 11 Storage 12 | . 14 11 Processor 3 | . . 11 Energy Gun 1 | . 2 . Launcher 23 | . 25 19 Naked Turns . | . . . Heaviest Build 16 | 9 16 16 Greatest Support 20 | 20 20 20 Greatest Overweight (x) . | . . . Average Overweight (x) . | . . . Largest Inventory Capacity 6 | 6 6 6 Average Capacity 5 | 5 6 6 Most Carried 6 | 1 6 6 Average Carried 5 | . 5 5 Final Capacity 6 | 6 6 6 Final Carried 6 | 1 6 6 Class Distribution -------------------- 100% | Mutant Dominant Class ---------------- Mutant | -10/Materials Mutant | -9/Materials Resources | -11 -10 -9 ----------- Run | Scr Mat Mat Matter Collected 296 | 241 55 . Remotely . | . . . Salvage Created 175 | . 175 . Parts 24 | . 24 . Haulers Intercepted . | . . . Recyclers Shooed . | . . . Parts Field Recycled . | . . . Retrieved Matter . | . . . Parts Self-Destructed . | . . . Prevented . | . . . Kills | -11 -10 -9 ------- Run | Scr Mat Mat Combat Hostiles Destroyed 10 | . 10 . AOE 10 | . 10 . Classes Destroyed 5 | . 5 . Builder 2 | . 2 . Operator 1 | . 1 . Watcher 3 | . 3 . Swarmer 6 | . 6 . Grunt 4 | . 4 . Best Kill Streak 7 | . 7 . Combat Bots Only 5 | . 5 . Max Kills in Single Turn 3 | . 3 . Gunslinging . | . . . Exploded 3 | . 3 . Melee . | . . . Uniques/NPCs Destroyed . | . . . Combat | -11 -10 -9 -------- Run | Scr Mat Mat Damage Taken 187 | . 88 99 Core 56 | . 34 22 Absorbed by Shields . | . . . Core Remaining (%) 93 | 100 86 . Volleys Fired 16 | . 16 . Largest 2 | . 2 . Hottest 60 | . 60 . Shots Fired 28 | . 28 . Gun . | . . . Cannon . | . . . Launcher 28 | . 28 . Special . | . . . Kinetic . | . . . Thermal . | . . . Explosive 28 | . 28 . Electromagnetic . | . . . Robot Hit Streak 1 | . 1 . Robot Miss Streak 1 | . 1 . Penetration Max . | . . . Secondary Targets . | . . . Shots Hit Robots 1 | . 1 . Core Hits 26 | . 26 . Critical Hits . | . . . Critical Kills . | . . . Critical Parts Destroyed . | . . . Melee Attacks . | . . . Impact . | . . . Slashing . | . . . Piercing . | . . . Sneak Attacks . | . . . Combat Hostiles . | . . . Follow-up Attacks . | . . . Damage Inflicted 983 | . 983 . Guns . | . . . Cannons . | . . . Explosions 983 | . 983 . Melee . | . . . Ramming . | . . . Kinetic . | . . . Thermal . | . . . Explosive 983 | . 983 . Electromagnetic . | . . . Impact . | . . . Slashing . | . . . Piercing . | . . . Highest Corruption . | . . . Average Corruption . | . . . Corruption Purged . | . . . Overload Shots . | . . . Overflow Damage 26 | . 26 . Projectiles . | . . . Explosions 26 | . 26 . Melee . | . . . Knockbacks . | . . . Impact . | . . . Kinetic . | . . . Secondary . | . . . Self-Inflicted Damage 24 | . 24 . Shots 1 | . 1 . Rammed . | . . . Targets Rammed . | . . . Kicked . | . . . Crushed . | . . . Highest Temperature 20 | . 20 . Average Temperature 20 | . 20 . Received Heat Transfer 54 | . 6 48 Siege Activations . | . . . Robots Corrupted . | . . . Combat Hostiles . | . . . Parts Fried . | . . . Impact Corruptions . | . . . Robots Melted . | . . . Combat Hostiles . | . . . Parts Melted . | . . . Heat Transferred . | . . . Parts Sabotaged . | . . . Parts Stolen . | . . . Parts Stripped . | . . . Power Chain Reactions . | . . . Missiles Intercepted . | . . . Alert | -11 -10 -9 ------- Run | Scr Mat Mat Peak Influence 268 | . 268 146 Initial 92 | . . 92 Average 116 | . 133 115 Maximum Alert Level 1 | . 1 . Low Security (%) 94 | 100 90 100 Level 1 5 | . 9 . Level 2 . | . . . Level 3 . | . . . Level 4 . | . . . Level 5 . | . . . High Security . | . . . Max Security . | . . . Squads Dispatched 1 | . 1 . Investigation . | . . . Extermination . | . . . Reinforcement 1 | . 1 . Assault . | . . . Garrison . | . . . Intercept . | . . . Construction Impeded . | . . . Haulers Reinforced . | . . . Stealth | -11 -10 -9 --------- Run | Scr Mat Mat Distress Signals 1 | . . 1 Communications Jammed . | . . . Distress Signals . | . . . Times Spotted 24 | . 13 11 Peak Tracking Total 8 | . 5 8 Tactical Retreats 1 | . . 1 Traps | -11 -10 -9 ------- Run | Scr Mat Mat Traps Triggered . | . . . Indirectly . | . . . Trap Hack Attempts . | . . . Triggered . | . . . Disarmed . | . . . Reprogrammed 4 | . . 4 Reused . | . . . Traps Extracted . | . . . Installed . | . . . Triggered . | . . . Machines | -11 -10 -9 ---------- Run | Scr Mat Mat Machines Disabled 4 | . 4 . Max in Single Turn 2 | . 2 . Machines Sabotaged . | . . . Garrisons Compromised . | . . . Overloaded Fab Kills . | . . . Fab Network Shutdowns . | . . . Hacking | -11 -10 -9 --------- Run | Scr Mat Mat Machines Accessed 5 | . 3 2 Terminals 5 | . 3 2 Fabricators . | . . . Repair Stations . | . . . Recycling Units . | . . . Scanalyzers . | . . . Garrison Access . | . . . Total Hacks 24 | . 15 9 Successful 17 | . 11 6 Failed 7 | . 4 3 Catastrophic 1 | . 1 . Database Lockouts . | . . . Manual 13 | . 7 6 Terminals 24 | . 15 9 Fabricators . | . . . Repair Stations . | . . . Recycling Units . | . . . Scanalyzers . | . . . Garrison Access . | . . . Terminal Hacks 10 | . 7 3 Record 1 | . 1 . Part Schematic 1 | . 1 . Prototype ID Bank 3 | . 2 1 Recycling Unit Index 1 | . . 1 Unreport Threat 1 | . 1 . Locate Traps 1 | . 1 . Reprogram Traps 1 | . . 1 Zone Layout 1 | . 1 . Fabricator Hacks . | . . . Repair Station Hacks . | . . . Recycling Unit Hacks . | . . . Scanalyzer . | . . . Garrison Access Hacks . | . . . Unauthorized Hacks 7 | . 4 3 Terminals 7 | . 4 3 Track 2 | . 2 . Botnet 3 | . 2 1 Disrupt 1 | . . 1 Operators 1 | . . 1 Fabricators . | . . . Repair Stations . | . . . Recycling Units . | . . . Scanalyzers . | . . . Garrison Access . | . . . Data Cores Recovered . | . . . Used . | . . . Hacking Detections 5 | . 3 2 Full Trace Events . | . . . Feedback Events . | . . . Feedback Blocked . | . . . Robot Schematics Acquired . | . . . Robots Built . | . . . Matter . | . . . Time . | . . . Total Robot Build Rating . | . . . Part Schematics Acquired 1 | . 1 . Parts Built . | . . . Matter . | . . . Time . | . . . Total Part Build Rating . | . . . Parts Repaired . | . . . Time . | . . . Parts Recycled . | . . . Recycled Matter . | . . . Retrieved Matter . | . . . Retrieved Components . | . . . Parts Scanalyzed . | . . . Part Schematics Acquired . | . . . Parts Damaged . | . . . Bothacking | -11 -10 -9 ------------ Run | Scr Mat Mat Used RIF Installer . | . . . Robots Hacked . | . . . Non-combat . | . . . Combat . | . . . Robot Hacks Applied . | . . . Relay Couplers Released . | . . . Robots Rewired . | . . . Allies Hacked . | . . . Hacks Repelled . | . . . Allies | -11 -10 -9 -------- Run | Scr Mat Mat Total Allies . | . . . Largest Group . | . . . Highest-Rated Group . | . . . Highest-Rated Ally . | . . . Total Orders . | . . . Ally Attacks . | . . . Total Damage . | . . . Kills . | . . . Allies Corrupted . | . . . Allies Melted . | . . . Intel | -11 -10 -9 ------- Run | Scr Mat Mat Robot Analysis Total . | . . . Derelict Logs Recovered . | . . . Drone Launches . | . . . Drone Recoveries . | . . . Exploration | -11 -10 -9 ------------- Run | Scr Mat Mat Turns Passed 460 | 39 270 151 Spaces Moved 478 | 38 260 180 Core 2 | 2 . . Treads . | . . . Legs . | . . . Wheels 476 | 36 260 180 Hover . | . . . Flight . | . . . Fastest Speed 50 | 50 80 80 Average Speed 79 | 78 80 80 Slowest Speed 80 | 80 80 80 Overloaded Moves . | . . . Propulsion Burnouts . | . . . Robots Hopped . | . . . Cave-ins Triggered . | . . . Exploration Rate (%) 29 | 3 64 20 Regions Visited 2 Branch Regions . Pre-discovered Areas . | . . . Known Exits Taken . | . . . Unknown Exits Taken 2 | 1 1 . Scrap Searched . | . . . Spaces Dug . | . . . Terrain Destroyed 138 | . 138 . Melee . | . . . Projectile . | . . . AOE 138 | . 138 . Terrain Rammed . | . . . Walls Destroyed . | . . . Machines Disabled . | . . . Actions | -11 -10 -9 --------- Run | Scr Mat Mat Total 525 | 44 295 186 Wait 6 | . 2 4 Move 476 | 37 259 180 Hop . | . . . Pick Up 10 | 1 8 1 Fast Attach 9 | 6 3 . Attach 1 | . . 1 Detach . | . . . Swap 1 | . 1 . Drop 6 | . 6 . Fire 16 | . 16 . Melee . | . . . Ram . | . . . Kick . | . . . Crush . | . . . Escape Stasis . | . . . Rewire . | . . . Trap . | . . . Miscellaneous . | . . . Route ------- -11/Scrapyard -10/Materials (discovered 4 exits: *Mat x2 / [*Min x2]) -9/Materials History --------- Turn | Location | Event 18 | -11/Scrapyard | Discovered new exit (range 16) 40 | -11/Scrapyard | Entered Materials 135 | -10/Materials | Discovered new exit (range 13) 162 | -10/Materials | Discovered new exit (range 16) 264 | -10/Materials | Discovered new exit (range 16) 286 | -10/Materials | Discovered new exit (range 15) 310 | -10/Materials | Entered another Materials area 310 | -9/Materials | Evolved 2 slots: Utility x2 331 | -9/Materials | Build established: Mutant 461 | -9/Materials | Self-destructed Last Messages --------------- Testing... Operator tracking enabled and active. >>Index(Recycling Units) Found 2 recycling units. Downloaded coordinate data. 00338_ T-07 Excavator is excavating. 00378_ W-16 Scout sends out distress signal. 00401_ K-01 Serf collects debris. 00406_ U-05 Engineer lays Concrete. 00435_ K-01 Serf collects debris. 00437_ K-01 Serf cleans the Matter Pump. 00438_ Grenade Launcher destroyed. 00441_ K-01 Serf collects debris. 00449_ Connecting with Terminal... >>Trojan(Disrupt) Trojan loaded successfully. Testing... Disruption routine running. >>Traps(Reprogram) Reprogrammed 4 Explosive Traps. Map ----- +----------------------------------------------------+ | | | | | | | | | | | | | | | | | | | | | | | | | | | | | | | | | | | | | ?????????????????????????????????????????????????? | | ?????????????????????????????????????????????????? | | ?????????????????????????????????????????????????? | | ?????????????????????###########?????????????????? | | ?????????????????????# l #??????????^^?????? | | ?????????????????????#" #??????????^^?????? | | ?????????????????????#T #?????????????????? | | #########????????????#" @ g #?????????????????? | | # #????????????# """g#???#?????????????? | | "" # T #????????????# s """ #?? #?????????????? | | "" # #????????????# g""" #? #????????????o? | | "" # #????????????# gs ## ##????????????? | | # #????????????########+## ####+#???????? | | # ################### ? ????? | | # ## ????? | | # ## ? """ """ """??????? | | +### ## """ """ ??????????? | | ###+### [ """ """ ""???????? | | ! ????? | | ????? | | ????? | | ########/######## [ ?????? | | ##???# #??# ################ #?????? | | #????# =#??# #???????????????????????? | | #????# #??# #???????????????????????? | | #????# #??# #???????????????????????? | | #????# #??# ??????????????????????? | | #????# #??# ?????????????????????? | | #????# #??# ????????????????????? | | #????# #??##########+???????????????????? | | #????# #????????????????????????????????? | | #????#+##/#####????????????????????????????????? | +----------------------------------------------------+ Best States ------------- Heat Dissipation 28 Energy Generation 10 Energy Capacity 250 Matter Stores 281 Matter Capacity 300 Sight Range 16 Robot Scan Range 10 Terrain Scan Density 10 Evasion (%) 44 Targeting Accuracy 5 Item Schematics ----------------- Med. Matter Pod | -10/Materials | Hacked Robot Schematics ------------------ None Fabricated ------------ Nothing Alien Tech Used ----------------- None Achievements -------------- None Challenges ------------ None Game ------ Seed NeutralizingActuatorPurifier Manual? 0 Play Time 00:11:30 Cumulative 271.4 hours Start 2022.01.05 @ 15:01:20 End 2022.01.05 @ 15:26:06 Sessions 1 Manual Loads 0 Difficulty Rogue Special Mode None Game No. 88 Rogue 69 Adventurer 19 Explorer 0 Win Type - Total 4 Types 2/0/1/1/0/0/0/0/0 Lore% 67 Gallery% 70 Achievement% 60 Wizard Run 0 Options --------- ASCII 0 Keyboard 0 Movement Mouse Keybinds 0 Fullscreen 2 Font 14/SmallcapsGlow Map View 84x54 Tactical HUD 1 Map Filters NONE Filters NONE Steam 1 RUN: 122f790c-6c52-48bc-9a6d-2d2c84931c38